bitfinex/quotes_SOLUSD_20240603
["timestamp","ask_amount","ask_price","bid_price","bid_amount"]
[1717408879635,6.8542077,165.43,165.36,2.2374]
[1717408879813,2.2367,165.42,165.37,43.34]
[1717408880134,6.8544077,165.42,165.37,43.34]
[1717408881165,2.2367,165.42,165.38,45.0]
[1717408881346,6.8544077,165.42,165.38,45.0]
[1717408881635,2.237,165.4,165.35,36.29]
[1717408881930,9.2869,165.41,165.35,45.5776]
[1717408882234,7.05,165.41,165.35,45.5776]
[1717408882427,9.2867,165.42,165.36,9.2875]
[1717408882740,2.2368,165.41,165.36,7.05]
[1717408882920,9.2867,165.42,165.36,7.05]
[1717408883833,2.2369,165.41,165.36,7.05]
[1717408884140,2.2369,165.41,165.35,2.2376]
[1717408884331,2.2369,165.41,165.36,7.05]
[1717408884643,2.2369,165.41,165.35,47.2376]
[1717408884644,9.2869,165.41,165.35,54.2876]
[1717408884855,9.2869,165.41,165.35,47.2376]
[1717408885062,9.2869,165.41,165.35,54.2876]
[1717408885444,9.2869,165.41,165.35,47.2376]
[1717408886051,2.2369,165.41,165.35,47.2376]
[1717408886263,9.2869,165.41,165.35,47.2376]
[1717408887669,2.2367,165.42,165.35,47.2376]
[1717408888175,2.237,165.4,165.35,7.05]
[1717408888351,7.05,165.4,165.34,36.29]
[1717408888542,7.05,165.38,165.32,45.5779]
[1717408888743,9.2872,165.38,165.32,45.5779]
[1717408889047,7.05,165.38,165.33,2.2379]
[1717408890141,9.2871,165.39,165.33,2.2379]
[1717408892159,2.2373,165.38,165.33,7.05]
[1717408892665,2.2373,165.38,165.32,9.288]
[1717408893843,9.2873,165.38,165.32,9.288]
[1717408895071,9.2871,165.39,165.33,88.34]
[1717408895256,9.2871,165.39,165.33,83.5279]
[1717408895459,9.2871,165.39,165.33,90.5779]
[1717408895647,9.2871,165.39,165.34,7.05]
[1717408895860,2.2371,165.39,165.34,7.05]
[1717408896367,2.2372,165.38,165.34,7.05]
[1717408896674,2.2372,165.38,165.33,88.34]
[1717408898971,2.2372,165.38,165.33,81.29]
[1717408899561,9.2872,165.38,165.33,81.29]
[1717408900658,2.2372,165.38,165.33,81.29]
[1717408902885,2.2372,165.38,165.33,88.34]
[1717408903664,13.3356,165.43,165.33,88.34]
[1717408903665,2.2371,165.39,165.35,7.05]
[1717408905067,2.2371,165.39,165.33,83.5279]
[1717408905275,2.2371,165.39,165.35,7.05]
[1717408905461,2.2371,165.39,165.34,0.17]
[1717408905773,2.2372,165.38,165.35,7.05]
[1717408907474,2.2372,165.38,165.34,43.51]
[1717408907681,2.2372,165.38,165.35,45.0]
[1717408918590,2.2372,165.38,165.35,52.05]
[1717408921182,2.2371,165.39,165.35,52.05]
[1717408921377,2.2369,165.41,165.35,90.5775]
[1717408921578,2.2367,165.43,165.38,7.05]
[1717408921791,21.9025178,165.46,165.38,7.05]
[1717408921985,2.2367,165.43,165.38,7.05]
[1717408922882,2.2367,165.42,165.39,7.05]
[1717408923700,2.2367,165.42,165.38,7.05]
[1717408929601,2.2367,165.42,165.39,7.05]
[1717408929934,2.2367,165.42,165.36,38.8675]
[1717408930088,2.2367,165.42,165.39,7.05]
[1717408932405,2.2366,165.43,165.39,7.05]
[1717408932787,2.2364,165.44,165.4,7.05]
[1717408933586,2.2364,165.44,165.41,45.0]
[1717408933822,2.2364,165.44,165.41,7.05]
[1717408934591,4.6177077,165.47,165.41,7.05]
[1717408934894,11.6677077,165.47,165.42,45.0]
[1717408935701,2.2363,165.45,165.42,45.0]
[1717408936316,2.2363,165.45,165.42,52.05]
[1717408937003,2.2363,165.45,165.42,45.0]
[1717408939413,4.6177077,165.47,165.42,45.0]
[1717408939414,2.2363,165.46,165.42,45.0]
[1717408939616,4.6177077,165.47,165.42,45.0]
[1717408940813,2.2362,165.46,165.42,45.0]
[1717408943005,2.2362,165.46,165.42,81.29]
[1717408944125,2.2362,165.46,165.42,45.0]
[1717408944423,9.2862,165.46,165.41,45.0]
[1717408944727,2.2362,165.46,165.41,45.0]
[1717408944919,9.2862,165.46,165.41,45.0]
[1717408945121,2.2362,165.46,165.41,45.0]
[1717408945434,9.2862,165.46,165.41,45.0]
[1717408946026,2.2363,165.45,165.41,45.0]
[1717408946233,9.2863,165.45,165.41,45.0]
[1717408947111,9.2863,165.45,165.4,36.29]
[1717408947930,7.05,165.45,165.4,36.29]
[1717408948606,7.05,165.45,165.4,2.2369]
[1717408948808,7.05,165.45,165.4,47.2369]
[1717408950012,9.2862,165.46,165.4,47.2369]
[1717408951835,7.05,165.42,165.37,2.2373]
[1717408952007,7.05,165.42,165.36,38.5275]
[1717408952008,2.2367,165.42,165.36,38.5275]
[1717408952209,7.05,165.41,165.36,38.5275]
[1717408952533,9.2867,165.42,165.36,38.5275]
[1717408953231,9.2868,165.41,165.35,2.2376]
[1717408953535,7.05,165.4,165.35,2.2376]
[1717408953711,2.2368,165.41,165.36,2.2375]
[1717408953910,7.05,165.41,165.36,2.2375]
[1717408954824,9.2868,165.41,165.35,83.5276]
[1717408955417,9.2871,165.4,165.35,81.29]
[1717408955611,2.2371,165.4,165.35,81.29]
[1717408955813,2.2369,165.41,165.35,83.5276]
[1717408956026,2.2369,165.41,165.36,7.05]
[1717408956230,2.2369,165.41,165.37,45.0]
[1717408956734,9.2867,165.42,165.37,45.0]
[1717408956915,7.05,165.42,165.37,47.2373]
[1717408957115,2.2366,165.43,165.37,47.2373]
[1717408957116,9.2866,165.43,165.37,90.5773]
[1717408957728,2.2366,165.43,165.38,7.05]
[1717408959519,2.2366,165.43,165.39,45.0]
[1717408960336,2.2363,165.46,165.39,99.7047]
[1717408960628,2.2363,165.46,165.41,7.05]
[1717408961823,2.2363,165.46,165.41,36.29]
[1717408962038,2.2363,165.46,165.42,45.0]
[1717408962742,2.2363,165.45,165.42,45.0]
[1717408964928,9.2862,165.46,165.42,45.0]
[1717408965438,2.2361,165.47,165.42,51.1853]
[1717408965639,9.2859,165.48,165.42,60.4719]
[1717408965818,9.2859,165.48,165.42,53.4219]
[1717408966147,2.236,165.47,165.42,87.4753]
[1717408966333,2.236,165.47,165.42,94.5253]
[1717408968045,2.2358,165.49,165.44,36.29]
[1717408968210,2.2358,165.49,165.45,45.0]
[1717408969037,2.2356,165.5,165.45,45.0]
[1717408969249,9.2856,165.5,165.45,51.3623]
[1717408969432,2.2356,165.5,165.45,58.4123]
[1717408971033,2.2356,165.5,165.45,51.3623]
[1717408971349,2.2358,165.49,165.45,51.3623]
[1717408975350,2.2358,165.49,165.46,6.5531]
[1717408975563,7.05,165.5,165.46,6.5531]
[1717408976254,2.2357,165.5,165.46,6.5531]
[1717408976451,9.2857,165.5,165.46,6.5531]
[1717408977724,2.2355,165.51,165.47,51.5278]
[1717408978057,9.2855,165.51,165.47,51.5278]
[1717408978650,2.2356,165.5,165.47,51.5278]
[1717408980652,2.2357,165.49,165.44,36.29]
[1717408980864,9.2857,165.49,165.45,45.0]
[1717408981767,7.05,165.48,165.45,45.0]
[1717408981936,7.05,165.47,165.43,0.17]
[1717408982350,7.05,165.47,165.43,45.17]
[1717408982955,7.05,165.48,165.43,81.46]
[1717408983270,2.2355,165.51,165.45,43.34]
[1717408983563,4.6177077,165.53,165.48,29.1671]
[1717408983855,2.2352,165.54,165.49,45.0]
[1717408984468,7.05,165.55,165.49,51.114]
[1717408984469,9.285,165.55,165.49,51.114]
[1717408985665,9.285,165.55,165.5,36.29]
[1717408985848,2.235,165.55,165.51,45.0]
[1717408987239,2.235,165.55,165.51,51.2154]
[1717408987936,9.285,165.55,165.51,51.2154]
[1717408988248,9.285,165.55,165.51,45.0]
[1717408989740,7.05,165.54,165.49,43.1069]
[1717408989935,7.05,165.54,165.5,45.0]
[1717408991057,9.2851,165.54,165.49,42.9369]
[1717408991445,7.05,165.53,165.48,15.7908]
[1717408991765,7.05,165.53,165.49,45.0]
[1717408992062,7.05,165.53,165.48,15.7908]
[1717408994173,7.05,165.53,165.47,2.236]
[1717408994353,6.8528077,165.54,165.47,83.526]
[1717408994671,11.6677077,165.54,165.48,45.7459]
[1717408994847,11.6677077,165.54,165.49,51.3477]
[1717408995457,4.6177077,165.54,165.49,51.3477]
[1717408995664,11.6677077,165.54,165.49,51.3477]
[1717408996474,4.6177077,165.54,165.49,51.3477]
[1717408997674,4.6177077,165.54,165.49,53.5834]
[1717408999366,4.6177077,165.54,165.49,81.29]
[1717408999541,8.9358,165.63,165.53,9.2851]
[1717408999542,2.2344,165.6,165.53,9.2851]
[1717408999753,15.5561,165.63,165.52,38.5253]
[1717408999754,9.2845,165.59,165.52,38.5253]
[1717408999969,9.2846,165.58,165.53,45.0]
[1717409000274,2.2346,165.58,165.53,45.0]
[1717409000448,9.2846,165.58,165.53,45.0]
[1717409000647,2.2346,165.58,165.53,45.0]
[1717409000854,2.2346,165.58,165.53,81.29]
[1717409001147,2.2344,165.59,165.53,88.34]
[1717409001348,2.2344,165.59,165.54,2.41565877]
[1717409001844,2.2344,165.59,165.55,2.41551285]
[1717409002047,15.5561,165.63,165.56,36.29]
[1717409002048,4.4678,165.63,165.56,36.29]
[1717409002374,2.2344,165.6,165.57,45.0]
[1717409002561,2.2344,165.6,165.56,36.29]
[1717409002562,7.05,165.59,165.56,36.29]
[1717409002882,2.2344,165.6,165.56,36.29]
[1717409003054,2.2344,165.59,165.56,36.29]
[1717409003454,2.2341,165.61,165.56,36.29]
[1717409003676,7.05,165.61,165.56,36.29]
[1717409004275,7.05,165.6,165.56,36.29]
[1717409004674,9.2843,165.6,165.56,36.29]
[1717409005369,2.2343,165.6,165.56,36.29]
[1717409005777,2.2344,165.59,165.56,36.29]
[1717409008154,9.2843,165.6,165.56,36.29]
[1717409008354,9.2842,165.61,165.56,36.29]
[1717409008964,11.1683,165.65,165.55,43.34]
[1717409009162,9.2842,165.61,165.56,87.7241]
[1717409009999,2.2343,165.6,165.56,87.7241]
[1717409011359,2.2343,165.6,165.56,94.7741]
[1717409011897,2.2343,165.6,165.56,87.7241]
[1717409013784,2.2344,165.59,165.56,87.7241]
[1717409014176,2.2343,165.6,165.56,87.7241]
[1717409015485,2.2343,165.6,165.56,87.5541]
[1717409015701,9.2843,165.6,165.56,87.3841]
[1717409015884,2.2344,165.59,165.56,87.3841]
[1717409016195,2.2344,165.59,165.54,58.8824]
[1717409016396,9.2844,165.59,165.54,58.8824]
[1717409017092,9.2844,165.59,165.55,6.3772]
[1717409020602,2.2344,165.59,165.55,6.3772]
[1717409020795,2.2344,165.59,165.55,42.6372]
[1717409021102,2.2344,165.59,165.56,45.0]
[1717409022904,2.2343,165.6,165.56,45.0]
[1717409023601,2.2343,165.6,165.56,87.6529]
[1717409032724,2.2344,165.59,165.56,87.6529]
[1717409034135,2.2344,165.59,165.56,81.26]
[1717409035117,2.2343,165.6,165.56,81.26]
[1717409037606,2.2344,165.59,165.56,81.26]
[1717409040721,2.2343,165.6,165.56,81.26]
[1717409041920,9.2844,165.59,165.54,6.5133]
[1717409042121,2.2345,165.58,165.55,45.0]
[1717409042621,9.2845,165.58,165.55,45.0]
[1717409043718,2.2344,165.59,165.55,45.0]
[1717409044330,2.2344,165.59,165.55,87.8434]
[1717409044711,2.2343,165.6,165.56,42.8434]
[1717409045025,2.2343,165.6,165.57,45.0]
[1717409047826,2.2344,165.59,165.57,45.0]
[1717409048425,2.2343,165.6,165.57,45.0]
[1717409049413,2.2344,165.59,165.57,45.0]
[1717409050118,2.2343,165.6,165.57,45.0]
[1717409050638,2.2343,165.6,165.57,87.8679]
[1717409053536,4.467,165.66,165.59,59.8138]
[1717409053736,28.92681572,165.66,165.6,52.05]
[1717409053936,4.467,165.66,165.61,13.363]
[1717409054123,4.467,165.66,165.61,29.8668]
[1717409054320,7.05,165.67,165.61,29.8668]
[1717409054535,2.2335,165.66,165.62,52.05]
[1717409054716,2.2336,165.65,165.62,58.363]
[1717409055541,2.2336,165.65,165.62,51.313]
[1717409056223,2.2336,165.65,165.62,58.363]
[1717409056528,2.2336,165.65,165.62,74.8668]
[1717409056841,2.2336,165.65,165.62,67.8168]
[1717409057647,2.2337,165.64,165.6,42.573]
[1717409057820,2.2337,165.64,165.61,45.0]
[1717409058830,2.2336,165.65,165.61,67.8168]
[1717409060537,2.2336,165.65,165.61,61.5038]
[1717409060843,2.2336,165.65,165.62,6.1105]
[1717409061220,2.2335,165.66,165.62,52.5137]
[1717409061449,2.2335,165.66,165.63,58.1605]
[1717409063541,2.2335,165.66,165.63,74.4409]
[1717409064049,2.2333,165.67,165.63,104.5904]
[1717409064256,2.2332,165.68,165.64,23.0223]
[1717409065331,2.2332,165.68,165.65,45.0]
[1717409067127,2.2332,165.68,165.65,81.26]
[1717409067337,2.2332,165.68,165.65,104.2823]
[1717409067926,2.2331,165.69,165.65,104.344]
[1717409068328,2.2331,165.69,165.66,6.436]
[1717409070636,2.2331,165.69,165.66,58.6516]
[1717409070838,2.2331,165.69,165.67,45.0]
[1717409071639,2.2329,165.7,165.67,51.5574]
[1717409072337,2.2331,165.69,165.67,51.5574]
[1717409076045,2.2331,165.69,165.64,36.6]
[1717409076247,2.2331,165.69,165.65,51.0655]
[1717409076447,2.2331,165.69,165.65,87.3255]
[1717409078558,9.2829,165.7,165.65,87.3255]
[1717409078764,9.2829,165.7,165.65,103.8667]
[1717409079678,2.233,165.69,165.65,103.8667]
[1717409082347,7.05,165.68,165.62,36.26]
[1717409082553,7.05,165.67,165.62,36.26]
[1717409082859,7.05,165.66,165.62,36.26]
[1717409083148,9.2836,165.65,165.59,15.5461]
[1717409083338,2.2337,165.64,165.6,36.26]
[1717409083747,9.2836,165.65,165.6,36.26]
[1717409084160,9.2836,165.65,165.61,45.0]
[1717409085458,9.2836,165.65,165.6,36.26]
[1717409091063,9.2836,165.65,165.59,38.4943]
[1717409091250,9.2836,165.65,165.6,45.0]
[1717409095359,9.2837,165.64,165.6,45.0]
[1717409096640,7.05,165.64,165.59,2.2344]
[1717409097162,7.05,165.64,165.59,47.2344]
[1717409098252,2.2339,165.63,165.59,45.0]
[1717409098444,9.2839,165.63,165.59,45.0]
[1717409098652,2.2339,165.63,165.59,45.0]
[1717409099051,2.2337,165.64,165.59,45.0]
[1717409099261,7.05,165.63,165.59,45.0]
[1717409099453,9.284,165.63,165.59,45.0]
[1717409099644,2.234,165.63,165.59,45.0]
[1717409100461,2.2337,165.64,165.59,45.0]
[1717409101762,2.2336,165.66,165.59,83.4943]
[1717409102068,2.2334,165.66,165.61,43.31]
[1717409102243,2.2334,165.66,165.62,45.0]
[1717409103261,9.2834,165.66,165.62,45.0]
[1717409104364,7.05,165.66,165.62,45.0]
[1717409104566,2.2336,165.65,165.62,45.0]
[1717409105349,2.2337,165.64,165.59,36.26]
[1717409105555,9.2836,165.65,165.6,45.0]
[1717409106061,2.2332,165.68,165.62,38.4939]
[1717409106271,2.2332,165.68,165.63,45.0]
[1717409106570,2.2329,165.7,165.64,51.8566]
[1717409106875,2.2329,165.7,165.65,81.26]
[1717409107375,2.233,165.69,165.65,81.26]
[1717409109183,2.2329,165.7,165.65,81.26]
[1717409109363,9.2829,165.7,165.65,87.8845]
[1717409109561,2.2329,165.7,165.65,102.9072]
[1717409110965,2.2331,165.69,165.65,102.9072]
[1717409111159,2.2331,165.69,165.65,87.8845]
[1717409111372,9.2832,165.68,165.62,45.544]
[1717409112366,9.2832,165.68,165.63,2.2338]
[1717409113471,9.2832,165.68,165.63,47.2338]
[1717409113672,9.2832,165.68,165.63,2.2338]
[1717409113967,9.2832,165.68,165.63,47.2338]
[1717409114758,4.4659,165.7,165.62,36.26]
[1717409114958,9.2834,165.67,165.62,36.26]
[1717409115190,2.2335,165.66,165.63,45.0]
[1717409115363,9.2835,165.66,165.63,45.0]
[1717409115761,9.2835,165.66,165.62,36.26]
[1717409115959,7.05,165.65,165.6,54.8892]
[1717409116167,7.05,165.65,165.61,45.17]
[1717409116582,7.05,165.65,165.61,45.0]
[1717409116786,9.2838,165.64,165.61,45.0]
[1717409117464,9.2838,165.64,165.59,0.17]
[1717409117465,9.2838,165.64,165.59,36.43]
[1717409117659,7.05,165.64,165.6,45.0]
[1717409118370,1.53945362,165.67,165.6,45.0]
[1717409118907,7.05,165.63,165.58,38.4945]
[1717409119092,7.05,165.63,165.59,45.0]
[1717409119696,7.05,165.65,165.6,2.2342]
[1717409120391,9.2836,165.65,165.6,2.2342]
[1717409120594,7.05,165.64,165.59,90.0695]
[1717409121870,9.2837,165.64,165.59,90.0695]
[1717409125073,9.2837,165.64,165.59,81.26]
[1717409125074,2.2337,165.64,165.59,81.26]
[1717409125281,9.2839,165.63,165.59,81.26]
[1717409125604,2.234,165.62,165.59,81.26]
[1717409127701,9.284,165.62,165.59,81.26]
[1717409130109,2.2343,165.6,165.56,52.1681]
[1717409130315,2.2342,165.61,165.57,45.0]
[1717409130605,9.2842,165.61,165.57,45.0]
[1717409131996,2.2343,165.6,165.57,45.0]
[1717409132225,2.2343,165.6,165.56,42.8149]
[1717409132580,9.2843,165.6,165.54,9.285]
[1717409132785,9.2843,165.6,165.54,45.545]
[1717409133681,7.05,165.6,165.54,45.545]
[1717409133886,23.09356818,165.7,165.54,45.545]
[1717409133887,7.05,165.58,165.54,36.26]
[1717409134109,7.05,165.58,165.53,15.4966]
[1717409134604,7.05,165.56,165.51,2.2354]
[1717409135104,9.2848,165.56,165.51,2.2354]
[1717409136709,9.2848,165.56,165.51,47.2354]
[1717409138117,9.2846,165.58,165.52,9.2853]
[1717409138314,2.2344,165.6,165.54,7.05]
[1717409138635,9.2843,165.6,165.55,53.8662]
[1717409138933,2.2344,165.59,165.55,51.6314]
[1717409141319,2.2343,165.6,165.55,58.6814]
[1717409141640,2.2343,165.6,165.56,0.41715489]
[1717409142023,2.2343,165.6,165.55,58.6814]
[1717409142336,2.2343,165.6,165.55,51.6314]
[1717409143720,2.2344,165.59,165.55,51.6314]
[1717409144138,2.2345,165.58,165.55,51.6314]
[1717409144310,2.2344,165.59,165.55,51.6314]
[1717409155451,2.2345,165.58,165.55,51.6314]
[1717409156368,2.2344,165.59,165.55,51.6314]
[1717409157644,2.2345,165.58,165.55,51.6314]
[1717409158848,2.2345,165.58,165.55,45.0]
[1717409159158,2.2345,165.58,165.54,36.26]
[1717409159846,2.2345,165.58,165.54,42.3352]
[1717409160049,2.2344,165.59,165.55,6.0752]
[1717409165565,2.2344,165.59,165.53,0.17]
[1717409165566,2.2346,165.58,165.53,0.17]
[1717409165866,2.2346,165.58,165.54,36.26]
[1717409170158,9.2844,165.59,165.54,36.26]
[1717409171067,2.2344,165.59,165.54,36.26]
[1717409171253,9.2844,165.59,165.54,36.26]
[1717409176178,2.2344,165.59,165.54,38.495]
[1717409176367,2.2343,165.6,165.54,38.495]
[1717409176682,9.2843,165.6,165.54,45.545]
[1717409177377,2.2343,165.6,165.55,2.2349]
[1717409179979,2.2343,165.6,165.54,45.715]
[1717409180186,2.2343,165.6,165.55,1.37645218]
[1717409180359,2.2342,165.61,165.56,38.4948]
[1717409180559,20.1017,165.66,165.57,46.75090644]
[1717409180896,2.2337,165.64,165.58,44.51623358]
[1717409181061,9.2837,165.64,165.58,46.75073358]
[1717409181577,2.2339,165.63,165.58,44.51623358]
[1717409182375,2.2339,165.63,165.6,7.05]
[1717409182573,2.2336,165.65,165.61,1.20601507]
[1717409182756,2.2335,165.66,165.61,44.51601507]
[1717409182952,2.2335,165.66,165.62,7.05]
[1717409183165,2.2335,165.66,165.63,1.20586944]
[1717409185890,2.2336,165.65,165.63,1.20586944]
[1717409188887,9.2837,165.64,165.59,0.34]
[1717409189062,9.2837,165.64,165.59,2.5744]
[1717409190474,9.2837,165.64,165.59,0.34]
[1717409190678,2.2338,165.63,165.59,0.17]
[1717409190876,2.2338,165.63,165.58,36.26]
[1717409191261,2.2338,165.63,165.58,38.4945]
[1717409194093,11.1644,165.71,165.62,43.31]
[1717409194263,2.2337,165.65,165.59,38.4943]
[1717409194582,2.2335,165.66,165.6,45.5442]
[1717409194775,2.2335,165.66,165.61,43.31]
[1717409195583,4.4662,165.69,165.63,43.31]
[1717409195584,2.2331,165.69,165.63,43.31]
[1717409195786,7.05,165.69,165.63,43.31]
[1717409195973,9.2833,165.68,165.63,36.26]
[1717409196790,2.2333,165.67,165.63,36.26]
[1717409196989,2.2333,165.67,165.62,2.2339]
[1717409197287,2.2334,165.66,165.6,36.43]
[1717409197493,2.2334,165.66,165.61,43.31]
[1717409198791,2.2336,165.65,165.6,45.7142]
[1717409201902,9.2835,165.66,165.6,45.7142]
[1717409202385,2.2335,165.66,165.61,7.05]
[1717409204587,2.2335,165.66,165.6,38.6642]
[1717409204788,2.2335,165.66,165.61,7.05]
[1717409207110,7.05,165.68,165.56,36.26]
[1717409207285,2.2341,165.61,165.56,36.26]
[1717409207690,9.284,165.62,165.56,38.4948]
[1717409207911,9.284,165.62,165.56,45.5448]
[1717409209597,2.234,165.62,165.56,45.5448]
[1717409209800,9.284,165.62,165.56,38.4948]
[1717409211008,2.234,165.62,165.56,38.4948]
[1717409212616,13.4012,165.66,165.54,2.2349]
[1717409212617,2.2344,165.59,165.54,2.2349]
[1717409212785,7.05,165.59,165.54,2.2349]
[1717409213686,7.05,165.59,165.54,38.4949]
[1717409215400,9.2844,165.59,165.54,38.4949]
[1717409215798,9.2844,165.59,165.53,2.2352]
[1717409216000,9.2844,165.59,165.53,9.2852]
[1717409216193,9.2844,165.59,165.53,45.5452]
[1717409220291,7.05,165.58,165.53,36.26]
[1717409220496,2.2345,165.58,165.53,38.4952]
[1717409220699,9.2845,165.58,165.53,2.2352]
[1717409221314,9.2845,165.58,165.52,45.5453]
[1717409221500,2.2347,165.57,165.52,45.5453]
[1717409222010,2.2347,165.57,165.52,2.2353]
[1717409224521,2.2347,165.57,165.51,45.5454]
[1717409226028,2.1525,165.62,165.54,2.235]
[1717409226209,2.2344,165.59,165.54,9.285]
[1717409227216,2.2344,165.59,165.54,7.05]
[1717409227806,2.1525,165.62,165.54,9.285]
[1717409227807,2.2343,165.6,165.54,9.285]
[1717409228021,2.2341,165.61,165.55,43.31]
[1717409228212,2.2341,165.61,165.56,7.05]
[1717409229832,2.2341,165.61,165.57,0.66938196]
[1717409230838,2.2343,165.6,165.55,9.2849]
[1717409231014,2.2343,165.6,165.55,45.5449]
[1717409232132,7.05,165.61,165.55,45.5449]
[1717409232133,9.2842,165.61,165.55,45.5449]
[1717409232632,2.2342,165.61,165.56,0.77549897]
[1717409233226,2.2343,165.6,165.56,0.77549897]
[1717409237413,2.2343,165.6,165.56,37.03549897]
[1717409238329,2.2343,165.6,165.56,36.26]
[1717409242740,2.2343,165.6,165.55,2.2349]
[1717409243039,2.2343,165.6,165.56,36.26]
[1717409248333,2.2343,165.6,165.55,2.2349]
[1717409248638,4.4677,165.64,165.56,2.2347]
[1717409248825,15.6356,165.65,165.56,2.2347]
[1717409248826,2.2341,165.62,165.57,38.4946]
[1717409249548,2.2341,165.62,165.57,45.5446]
[1717409249723,2.2339,165.63,165.58,0.34]
[1717409249921,9.2839,165.63,165.58,0.34]
[1717409250928,8.9331,165.68,165.58,0.34]
[1717409251132,11.1656,165.69,165.58,0.34]
[1717409251133,2.2337,165.65,165.6,45.5442]
[1717409251353,2.2337,165.65,165.61,1.83244102]
[1717409252056,9.2835,165.66,165.61,1.83244102]
[1717409252738,2.2336,165.65,165.61,1.83244102]
[1717409254930,2.1525,165.7,165.62,36.26]
[1717409255138,2.1525,165.7,165.63,1.83221975]
[1717409255139,2.2333,165.68,165.63,1.83221975]
[1717409255744,2.2333,165.68,165.63,45.14221975]
[1717409256747,2.2333,165.68,165.63,47.37601975]
[1717409258327,7.05,165.7,165.64,0.17]
[1717409258533,9.2832,165.69,165.63,51.9639]
[1717409258732,2.2332,165.68,165.63,51.9639]
[1717409260754,2.2332,165.68,165.64,0.17]
[1717409261047,2.2332,165.68,165.65,36.26]
[1717409261251,2.2332,165.68,165.66,0.35684041]
[1717409261843,2.2332,165.68,165.64,36.43]
[1717409263730,9.2831,165.69,165.64,38.6637]
[1717409264856,2.2332,165.68,165.62,2.4039]
[1717409265155,9.2833,165.67,165.62,38.4939]
[1717409265334,2.2334,165.66,165.62,36.26]
[1717409265956,9.2833,165.67,165.62,38.494]
[1717409266151,7.05,165.67,165.62,36.26]
[1717409266358,7.05,165.67,165.63,2.2338]
[1717409266669,9.2832,165.68,165.63,2.2338]
[1717409268234,2.2332,165.68,165.63,2.2338]
[1717409268558,9.2832,165.68,165.63,2.2338]
[1717409270463,9.2833,165.67,165.62,38.494]
[1717409271139,2.2335,165.66,165.61,2.2341]
[1717409271457,2.2335,165.66,165.61,38.4941]
[1717409272358,2.2335,165.66,165.61,2.2341]
[1717409272658,9.2835,165.66,165.61,2.2341]
[1717409277457,7.05,165.66,165.61,2.2341]
[1717409277667,9.2834,165.67,165.61,2.2341]
[1717409278076,9.2834,165.67,165.62,2.234]
[1717409280249,2.2332,165.68,165.63,2.2338]
[1717409283068,9.2831,165.69,165.64,2.2337]
[1717409284369,2.2331,165.69,165.64,45.5437]
[1717409287678,2.2331,165.69,165.65,7.05]
[1717409288063,2.2331,165.69,165.65,43.31]
[1717409289488,2.2331,165.69,165.66,1.1177457]
[1717409290087,2.2331,165.69,165.65,36.26]
[1717409291768,2.2331,165.69,165.65,7.05]